bitfinex/quotes_SOLUSD_20251218
["timestamp","ask_amount","ask_price","bid_price","bid_amount"]
[1766016819047,0.1,123.6,123.58,4.61228741]
[1766016819269,0.1,123.6,123.59,3.24398848]
[1766016820152,0.1,123.6,123.59,3.84398848]
[1766016820976,0.1,123.6,123.59,3.24398848]
[1766016821769,0.1,123.6,123.59,3.84398848]
[1766016821965,0.66,123.62,123.6,4.01228741]
[1766016822153,0.1,123.63,123.61,0.4]
[1766016822357,0.1,123.63,123.61,4.41228741]
[1766016822866,0.1,123.63,123.62,10.53767296]
[1766016831996,0.1,123.64,123.62,10.53767296]
[1766016832168,0.1,123.64,123.62,10.83767296]
[1766016832368,0.76,123.64,123.62,10.53767296]
[1766016832569,0.76,123.64,123.61,13.19228741]
[1766016832781,0.76,123.64,123.62,10.53767296]
[1766016836183,0.76,123.64,123.61,8.88]
[1766016836372,0.76,123.64,123.61,19.41767296]
[1766016839384,0.66,123.63,123.6,8.32457482]
[1766016840090,0.66,123.63,123.6,4.31228741]
[1766016840284,0.1,123.64,123.62,0.3]
[1766016840882,0.76,123.64,123.62,10.83767296]
[1766016841263,0.76,123.64,123.62,10.53767296]
[1766016844173,0.1,123.64,123.63,0.3]
[1766016844368,0.1,123.64,123.62,19.69767296]
[1766016844686,0.1,123.64,123.62,9.16]
[1766016844883,0.1,123.64,123.63,10.53767296]
[1766016845078,0.1,123.66,123.64,0.2]
[1766016845382,0.1,123.66,123.65,0.2]
[1766016845888,0.1,123.66,123.64,4.00559402]
[1766016846198,0.1,123.66,123.65,8.88]
[1766016846585,0.76,123.66,123.63,8.86]
[1766016846895,0.76,123.66,123.63,17.74]
[1766016847200,0.76,123.66,123.63,8.86]
[1766016847593,0.76,123.66,123.64,8.88]
[1766016848089,0.1,123.66,123.64,9.08]
[1766016848872,0.76,123.66,123.64,8.88]
[1766016849599,0.76,123.7,123.66,0.1]
[1766016849796,0.76,123.7,123.66,8.86]
[1766016850187,0.76,123.7,123.66,21.86035483]
[1766016850382,0.66,123.68,123.66,12.28035483]
[1766016850590,0.66,123.68,123.64,8.86]
[1766016850900,0.66,123.68,123.64,13.00035483]
[1766016851099,0.66,123.68,123.64,13.67035483]
[1766016852805,0.66,123.68,123.64,13.72035483]
[1766016853101,0.66,123.68,123.66,0.72]
[1766016854406,0.66,123.68,123.66,16.2830367]
[1766016858803,0.66,123.68,123.66,25.1430367]
[1766016859303,0.72,123.69,123.66,25.1430367]
[1766016860622,0.72,123.69,123.67,0.72]
[1766016861110,0.72,123.69,123.66,24.4230367]
[1766016861111,0.72,123.69,123.66,27.70571857]
[1766016861510,0.72,123.69,123.66,26.98571857]
[1766016861718,0.72,123.69,123.66,27.70571857]
[1766016861886,0.72,123.69,123.66,25.1430367]
[1766016862419,0.72,123.69,123.66,24.4230367]
[1766016863186,0.72,123.69,123.66,25.1430367]
[1766016864515,0.82,123.7,123.66,24.4230367]
[1766016864817,0.82,123.7,123.66,25.1430367]
[1766016866412,0.82,123.7,123.67,0.72]
[1766016866594,0.1,123.7,123.67,0.72]
[1766016867212,0.1,123.7,123.68,0.72]
[1766016869314,0.72,123.69,123.67,13.00035483]
[1766016870513,0.72,123.69,123.67,13.72035483]
[1766016870714,0.72,123.69,123.67,13.00035483]
[1766016870923,0.72,123.69,123.67,13.72035483]
[1766016872220,0.1,123.7,123.68,0.72]
[1766016872523,0.82,123.7,123.68,11.15767296]
[1766016872822,0.82,123.7,123.68,10.43767296]
[1766016873016,0.82,123.7,123.67,0.72]
[1766016873320,0.82,123.7,123.67,11.15767296]
[1766016876206,0.82,123.7,123.67,10.43767296]
[1766016877522,0.82,123.7,123.67,11.15767296]
[1766016878626,0.82,123.7,123.67,0.72]
[1766016880438,0.72,123.69,123.66,10.43767296]
[1766016880614,13.10035483,123.7,123.63,0.72]
[1766016880615,3.28268187,123.68,123.63,0.72]
[1766016880811,0.72,123.67,123.63,19.29767296]
[1766016881012,0.72,123.67,123.63,8.86]
[1766016883529,0.71,123.68,123.65,0.7]
[1766016883711,0.71,123.69,123.65,0.7]
[1766016884233,0.71,123.69,123.65,22.58035483]
[1766016884618,0.71,123.69,123.66,0.7]
[1766016886731,0.71,123.69,123.65,19.31767296]
[1766016886921,0.71,123.69,123.65,20.01767296]
[1766016887232,0.71,123.69,123.65,19.31767296]
[1766016887437,0.71,123.69,123.66,0.7]
[1766016888143,0.71,123.69,123.65,28.87767296]
[1766016889039,0.71,123.69,123.66,0.7]
[1766016889842,0.71,123.69,123.65,28.87767296]
[1766016891748,0.71,123.69,123.65,9.56]
[1766016892241,0.71,123.69,123.64,21.88035483]
[1766016892540,0.71,123.68,123.64,28.17767296]
[1766016892745,0.71,123.68,123.63,8.86]
[1766016892746,0.71,123.67,123.63,8.86]
[1766016892942,0.71,123.67,123.63,12.80267358]
[1766016893324,0.71,123.67,123.64,0.7]
[1766016893941,0.71,123.67,123.64,3.94267358]
[1766016894334,0.71,123.67,123.64,0.7]
[1766016894644,0.71,123.67,123.64,3.94267358]
[1766016896550,0.71,123.67,123.64,0.7]
[1766016898751,0.71,123.67,123.64,3.94267358]
[1766016899262,0.71,123.69,123.65,0.7]
[1766016899466,0.71,123.69,123.65,3.94241073]
[1766016900257,0.71,123.69,123.66,0.7]
[1766016900449,0.71,123.69,123.65,3.24241073]
[1766016900657,0.71,123.69,123.65,3.94241073]
[1766016901455,0.71,123.69,123.65,0.7]
[1766016901835,0.71,123.67,123.64,0.7]
[1766016902037,0.71,123.67,123.63,20.01767296]
[1766016902231,0.71,123.67,123.64,0.7]
[1766016903044,0.71,123.67,123.62,19.51166962]
[1766016903045,0.71,123.66,123.62,0.7]
[1766016903348,0.71,123.66,123.63,0.7]
[1766016903756,10.43767296,123.69,123.65,0.7]
[1766016903757,11.14767296,123.69,123.65,0.7]
[1766016904070,0.71,123.68,123.65,0.7]
[1766016904432,0.71,123.68,123.65,11.13767296]
[1766016905241,0.1,123.7,123.65,10.43767296]
[1766016905442,0.71,123.69,123.66,0.7]
[1766016911864,0.71,123.69,123.66,13.69931166]
[1766016912063,0.71,123.69,123.66,0.7]
[1766016913568,0.1,123.7,123.66,4.00256968]
[1766016913739,0.1,123.7,123.68,0.66]
[1766016914962,0.1,123.7,123.68,4.66256968]
[1766016915457,0.76,123.7,123.68,4.66256968]
[1766016916140,0.76,123.7,123.68,4.00256968]
[1766016916971,0.76,123.7,123.68,4.66256968]
[1766016918153,0.76,123.7,123.68,0.66]
[1766016918760,0.76,123.7,123.67,12.74870832]
[1766016918972,0.76,123.7,123.64,0.66]
[1766016919158,0.76,123.7,123.62,29.03195842]
[1766016919159,0.66,123.69,123.66,16.94719828]
[1766016919355,0.66,123.69,123.65,0.66]
[1766016919750,0.66,123.69,123.65,11.09767296]
[1766016920893,0.66,123.69,123.65,15.10024264]
[1766016922179,0.66,123.69,123.65,4.00256968]
[1766016922372,0.66,123.69,123.66,0.66]
[1766016922669,0.66,123.69,123.66,4.66256968]
[1766016922878,0.66,123.69,123.66,0.66]
[1766016923073,0.1,123.7,123.66,0.66]
[1766016923251,0.76,123.7,123.66,0.66]
[1766016923750,0.76,123.7,123.66,10.43767296]
[1766016923951,0.76,123.7,123.67,0.66]
[1766016924247,0.1,123.7,123.67,0.66]
[1766016924561,0.76,123.7,123.67,0.66]
[1766016924765,0.76,123.7,123.67,4.00256968]
[1766016924989,0.1,123.7,123.68,0.66]
[1766016925576,4.00256968,123.73,123.68,4.00256968]
[1766016925577,0.66,123.73,123.68,4.00256968]
[1766016925784,0.66,123.73,123.69,0.66]
[1766016925956,0.66,123.73,123.69,11.09767296]
[1766016926461,0.66,123.72,123.68,0.66]
[1766016926780,0.66,123.72,123.68,11.09767296]
[1766016928795,0.66,123.74,123.7,0.66]
[1766016929490,0.66,123.73,123.7,11.09767296]
[1766016929792,0.66,123.71,123.67,8.86]
[1766016929961,0.66,123.71,123.68,10.43767296]
[1766016930166,0.1,123.76,123.69,0.66]
[1766016930365,0.66,123.74,123.7,0.66]
[1766016930776,0.66,123.74,123.7,11.19767296]
[1766016932496,0.66,123.74,123.7,0.66]
[1766016933472,0.66,123.74,123.67,50.04968758]
[1766016933473,0.66,123.73,123.68,0.66]
[1766016933778,0.66,123.73,123.69,0.66]
[1766016934688,0.66,123.73,123.7,0.66]
[1766016935269,0.66,123.73,123.68,8.86]
[1766016935493,0.66,123.72,123.68,8.86]
[1766016935875,0.66,123.72,123.67,4.66256968]
[1766016936079,0.66,123.72,123.67,13.52256968]
[1766016936777,0.66,123.72,123.68,0.66]
[1766016941213,4.70256968,123.71,123.66,0.67]
[1766016941511,4.70256968,123.71,123.65,9.53]
[1766016941512,0.7,123.7,123.65,9.53]
[1766016942297,0.7,123.7,123.65,8.86]
[1766016942497,0.7,123.7,123.66,0.67]
[1766016945010,0.7,123.7,123.66,4.67256968]
[1766016945498,14.44024264,123.72,123.66,4.67256968]
[1766016945499,0.7,123.71,123.68,0.67]
[1766016947706,0.7,123.71,123.66,4.67256968]
[1766016948014,0.7,123.71,123.67,0.67]
[1766016953183,0.7,123.71,123.66,4.00256968]
[1766016953184,0.7,123.7,123.65,13.53256968]
[1766016953886,0.7,123.7,123.66,0.67]
[1766016954494,0.7,123.71,123.68,0.67]
[1766016957916,0.7,123.72,123.68,0.67]
[1766016961016,0.7,123.72,123.66,8.08634463]
[1766016961206,0.7,123.71,123.67,0.67]
[1766016966814,0.7,123.71,123.68,0.67]
[1766016968820,0.7,123.71,123.67,0.67]
[1766016971239,0.7,123.71,123.66,9.56]
[1766016971921,0.7,123.71,123.67,0.7]
[1766016974820,0.7,123.71,123.66,8.86]
[1766016975131,0.7,123.71,123.64,16.94771875]
[1766016975132,0.7,123.69,123.65,0.7]
[1766016975716,0.7,123.69,123.65,2.56153347]
[1766016975936,0.7,123.69,123.66,0.7]
[1766016977802,0.7,123.72,123.66,2.56171571]
[1766016978121,0.7,123.72,123.67,3.26171571]
[1766016978122,0.7,123.71,123.67,3.26171571]
[1766016978503,0.7,123.71,123.67,0.7]
[1766016980230,0.7,123.69,123.66,0.7]
[1766016980432,2.56171571,123.7,123.66,0.7]
[1766016980629,3.26171571,123.7,123.66,0.7]
[1766016981010,0.7,123.7,123.66,0.7]
[1766016982818,0.7,123.69,123.64,12.12171571]
[1766016983035,2.56171571,123.69,123.64,0.7]
[1766016983206,0.7,123.69,123.65,0.7]
[1766016983518,0.7,123.69,123.65,2.56171571]
[1766016983727,0.7,123.69,123.66,0.7]
[1766016984931,0.7,123.7,123.66,0.7]
[1766016988746,0.7,123.73,123.67,0.7]
[1766016988919,0.7,123.72,123.67,0.7]
[1766016989117,0.7,123.72,123.67,2.56171571]
[1766016989313,0.7,123.72,123.68,0.7]
[1766016989815,0.7,123.72,123.68,2.56171571]
[1766016990037,0.7,123.72,123.69,0.7]
[1766016990232,0.7,123.7,123.66,0.7]
[1766016992513,8.90994492,123.76,123.67,9.50994492]
[1766016992717,0.8,123.76,123.71,2.56171571]
[1766016992930,0.8,123.76,123.71,3.26171571]
[1766016993240,10.53767296,123.76,123.71,0.7]
[1766016993415,0.7,123.75,123.71,0.7]
[1766016993739,0.7,123.75,123.71,3.26171571]
[1766016993940,0.7,123.75,123.72,0.7]
[1766016996430,0.7,123.75,123.72,3.26171571]
[1766016996918,0.7,123.75,123.72,0.7]
[1766017000657,2.56171571,123.75,123.69,3.26171571]
[1766017000951,0.7,123.74,123.7,0.68]
[1766017003221,10.53767296,123.76,123.73,10.43767296]
[1766017003222,0.1,123.76,123.73,10.43767296]
[1766017003532,0.1,123.76,123.74,0.68]
[1766017003930,0.79,123.76,123.73,13.6779824]
[1766017004124,0.79,123.76,123.73,10.43767296]
[1766017004920,0.79,123.76,123.73,13.6779824]
[1766017006049,0.1,123.76,123.73,21.75996339]
[1766017006232,0.69,123.78,123.75,0.62]
[1766017006932,0.69,123.78,123.75,3.85978455]
[1766017007331,0.69,123.78,123.75,0.62]
[1766017007532,0.69,123.78,123.75,3.85978455]
[1766017009251,0.69,123.78,123.75,0.62]
[1766017009953,2.56171571,123.78,123.73,19.29767296]
[1766017010152,0.69,123.77,123.73,23.15771994]
[1766017010348,0.69,123.77,123.73,22.53771994]
[1766017010558,0.69,123.77,123.73,14.29771994]
[1766017011755,0.79,123.79,123.75,0.62]
[1766017011970,0.79,123.79,123.76,0.62]
[1766017012660,0.79,123.79,123.75,2.56171571]
[1766017012960,0.79,123.79,123.75,3.18171571]
[1766017013657,0.79,123.79,123.75,11.26244669]
[1766017013855,0.1,123.79,123.77,3.18171571]
[1766017015064,0.1,123.79,123.78,3.18171571]
[1766017015241,0.79,123.82,123.79,3.08171571]
[1766017015429,0.1,123.82,123.8,0.52]
[1766017016057,0.1,123.82,123.8,3.08171571]
[1766017016255,0.1,123.82,123.81,2.56171571]
[1766017016480,0.69,123.86,123.82,0.42]
[1766017016637,0.69,123.86,123.82,2.98171571]
[1766017016836,0.69,123.86,123.8,8.80994492]
[1766017017032,0.69,123.86,123.81,11.84171571]
[1766017017338,0.69,123.85,123.81,11.84171571]
[1766017020737,19.29767296,123.87,123.83,2.98171571]
[1766017020938,11.22767296,123.88,123.85,0.42]
[1766017021145,0.69,123.87,123.84,2.98171571]
[1766017021469,11.22767296,123.88,123.84,20.65166063]
[1766017021966,0.69,123.87,123.84,18.08994492]
[1766017022162,10.53767296,123.88,123.84,17.66994492]
[1766017022463,11.22767296,123.88,123.84,20.65166063]
[1766017023045,0.69,123.87,123.84,17.66994492]
[1766017023641,0.69,123.87,123.84,8.86]
[1766017024062,0.69,123.87,123.83,10.85767296]
[1766017024265,0.69,123.87,123.83,9.28]
[1766017024873,0.69,123.85,123.81,2.98171571]
[1766017025085,0.69,123.83,123.78,0.42]
[1766017025271,0.69,123.83,123.79,19.29767296]
[1766017025467,0.69,123.83,123.79,19.71767296]
[1766017029886,0.69,123.83,123.79,22.27938867]
[1766017030789,0.69,123.83,123.79,19.71767296]
[1766017031492,0.69,123.83,123.79,10.43767296]
[1766017031493,0.7,123.82,123.79,10.43767296]
[1766017031696,0.7,123.83,123.79,0.42]
[1766017031988,0.7,123.83,123.8,0.42]
[1766017033477,0.7,123.83,123.79,18.9361846]
[1766017034104,0.7,123.83,123.79,0.42]
[1766017034273,0.7,123.83,123.77,25.74914892]
[1766017034478,4.69377233,123.79,123.78,18.9361846]
[1766017034680,0.7,123.78,123.73,8.08190726]
[1766017034977,0.7,123.76,123.73,18.9361846]
[1766017035174,0.7,123.75,123.73,18.9361846]
[1766017035607,3.99377233,123.77,123.72,9.28]
[1766017035778,0.7,123.76,123.72,9.28]
[1766017035979,0.7,123.76,123.72,13.27377233]
[1766017037602,0.7,123.76,123.72,9.28]
[1766017037781,0.7,123.76,123.72,13.27377233]
[1766017038200,10.43767296,123.78,123.72,12.85377233]
[1766017038408,0.7,123.78,123.74,0.42]
[1766017038613,0.7,123.78,123.75,0.42]
[1766017038785,11.13767296,123.8,123.76,0.42]
[1766017039104,11.13767296,123.8,123.75,12.85377233]
[1766017039105,0.7,123.81,123.77,4.41377233]
[1766017039682,0.7,123.81,123.78,3.99377233]
[1766017040902,0.7,123.81,123.77,4.41377233]
[1766017041901,0.7,123.81,123.76,0.42]
[1766017042107,0.7,123.81,123.77,3.99377233]
[1766017042309,0.7,123.8,123.77,3.99377233]
[1766017043697,0.7,123.8,123.77,4.41377233]
[1766017044020,0.7,123.79,123.74,3.99377233]
[1766017044196,0.7,123.79,123.74,12.85377233]
[1766017044197,0.7,123.78,123.74,12.85377233]
[1766017044394,3.99377233,123.78,123.73,14.43144529]
[1766017044709,0.7,123.76,123.72,12.85851254]
[1766017045089,0.7,123.76,123.72,17.36255259]
[1766017045301,8.86,123.8,123.76,0.42]
[1766017045302,0.7,123.8,123.76,0.42]
[1766017045602,0.7,123.81,123.77,4.41851254]
[1766017045803,0.7,123.81,123.78,3.99851254]
[1766017046201,0.7,123.81,123.77,4.41851254]
[1766017049430,0.7,123.81,123.77,0.42]
[1766017049633,0.7,123.81,123.77,4.41851254]
[1766017050638,0.7,123.81,123.76,41.56133707]
[1766017050925,0.7,123.8,123.76,20.20293315]
[1766017051102,0.7,123.79,123.75,12.85851254]
[1766017051303,0.7,123.79,123.75,9.28]
[1766017054023,3.99851254,123.79,123.73,22.51817953]
[1766017054207,0.7,123.77,123.73,9.28]
[1766017054404,0.7,123.76,123.73,9.28]
[1766017055103,0.7,123.75,123.71,10.85767296]
[1766017055309,4.69851254,123.75,123.71,9.28]
[1766017056039,0.7,123.75,123.71,9.28]
[1766017056925,0.7,123.74,123.71,0.42]
[1766017057131,0.7,123.74,123.71,8.86]
[1766017057302,0.7,123.74,123.71,9.28]
[1766017058007,0.7,123.74,123.71,8.86]
[1766017058208,0.7,123.74,123.7,10.43767296]
[1766017058432,0.7,123.74,123.69,17.36451977]
[1766017058655,0.7,123.74,123.7,0.42]
[1766017058820,0.7,123.73,123.7,0.42]
[1766017063619,0.7,123.73,123.69,8.86]
[1766017063822,0.7,123.73,123.69,9.28]
[1766017065718,0.69,123.71,123.69,8.86]
[1766017067032,0.69,123.71,123.68,0.42]
[1766017067237,0.69,123.71,123.68,9.28]
[1766017068837,3.99851254,123.74,123.69,0.42]
[1766017069066,0.69,123.73,123.69,0.42]
[1766017070143,0.69,123.73,123.69,8.50455543]
[1766017071541,0.69,123.73,123.69,8.08455543]
[1766017071745,0.69,123.73,123.7,0.42]
[1766017072721,0.69,123.72,123.69,0.42]
[1766017073427,0.69,123.72,123.68,16.94509489]
[1766017073428,0.69,123.71,123.68,9.28]
[1766017074125,0.69,123.71,123.68,17.36534641]
[1766017074841,3.99851254,123.73,123.68,16.94534641]
[1766017075045,3.99851254,123.73,123.69,0.42]
[1766017075046,4.68851254,123.73,123.69,0.42]
[1766017075750,0.69,123.72,123.69,8.50462344]
[1766017076241,0.69,123.72,123.69,8.86]
[1766017076242,0.69,123.71,123.69,8.86]
[1766017076443,0.69,123.7,123.67,9.28]
[1766017076742,0.69,123.7,123.67,8.86]
[1766017076743,0.69,123.69,123.67,8.86]
[1766017076932,4.68851254,123.7,123.67,8.86]
[1766017077136,4.68851254,123.7,123.66,0.42]
[1766017077534,0.69,123.69,123.67,8.86]
[1766017079353,0.69,123.69,123.66,9.28]
[1766017079651,0.69,123.67,123.64,9.06]
[1766017079833,0.69,123.66,123.64,9.06]
[1766017080028,0.69,123.66,123.64,0.2]
[1766017080231,0.69,123.64,123.61,0.82]
[1766017080456,3.99851254,123.63,123.61,0.2]
[1766017080756,10.43767296,123.66,123.58,0.62]
[1766017080757,4.68851254,123.62,123.58,9.48]
[1766017081074,0.69,123.63,123.6,0.72]
[1766017081547,0.69,123.62,123.59,0.72]
[1766017082855,0.69,123.63,123.6,0.72]
[1766017083052,0.69,123.63,123.59,0.72]
[1766017083248,0.69,123.63,123.59,9.58]
[1766017084450,0.69,123.63,123.59,0.72]
[1766017084681,0.69,123.63,123.59,9.58]
[1766017085250,0.69,123.63,123.59,17.67125343]
[1766017085555,0.69,123.62,123.59,9.58]
[1766017092530,0.69,123.62,123.59,0.72]
[1766017092752,0.69,123.62,123.59,9.58]
[1766017094559,4.68851254,123.62,123.59,0.72]
[1766017094763,0.72,123.61,123.58,9.53]
[1766017095546,0.72,123.61,123.58,8.86]
[1766017096136,0.72,123.61,123.58,9.53]
[1766017097862,0.72,123.61,123.58,8.86]
[1766017099265,0.72,123.6,123.57,9.73]
[1766017103944,0.72,123.6,123.57,9.06]
[1766017104271,0.72,123.6,123.57,9.73]
[1766017106580,0.72,123.61,123.58,0.67]
[1766017109765,0.72,123.61,123.58,8.88]
[1766017113759,0.72,123.61,123.58,9.55]
[1766017115659,0.72,123.61,123.58,17.64188813]
[1766017115983,0.72,123.62,123.59,0.67]
[1766017116174,0.72,123.62,123.59,8.76123009]
[1766017118904,0.72,123.62,123.59,0.67]
[1766017120987,0.7,123.61,123.59,0.67]
[1766017121491,0.7,123.61,123.58,16.97160297]
[1766017121787,0.7,123.61,123.58,17.65160297]
[1766017123867,0.7,123.61,123.59,0.68]
[1766017124068,0.7,123.61,123.58,17.65160297]
[1766017124881,0.7,123.61,123.58,16.97160297]
[1766017125088,0.7,123.61,123.59,0.68]
[1766017126095,0.7,123.61,123.58,17.65160297]
[1766017128384,0.7,123.63,123.59,0.68]
[1766017128568,11.13767296,123.64,123.59,0.68]
[1766017128770,10.43767296,123.64,123.6,0.68]
[1766017128969,2.56519496,123.69,123.64,0.68]
[1766017129234,0.7,123.69,123.65,9.56]
[1766017129661,0.7,123.67,123.63,10.43767296]
[1766017129991,0.7,123.67,123.64,8.88]
[1766017131365,0.7,123.67,123.64,9.56]
[1766017137419,2.56519496,123.67,123.62,0.68]
[1766017137707,0.7,123.65,123.61,8.08983452]
[1766017138082,0.7,123.65,123.61,8.76983452]
[1766017138789,0.7,123.65,123.62,0.68]
[1766017139098,0.7,123.67,123.63,0.68]
[1766017139502,10.43767296,123.67,123.63,0.68]
[1766017139699,0.7,123.66,123.62,10.65416345]
[1766017139898,0.7,123.66,123.62,8.76896849]
[1766017140097,0.7,123.66,123.62,0.68]
[1766017140295,0.7,123.66,123.62,8.7691803]
[1766017142188,0.7,123.66,123.63,0.68]
[1766017143120,0.7,123.66,123.63,9.54]
[1766017144308,0.7,123.66,123.63,8.86]
[1766017145317,0.7,123.66,123.61,2.56519496]
[1766017145318,0.7,123.66,123.61,8.86]
[1766017145522,0.7,123.66,123.6,17.63033438]
[1766017145523,0.7,123.64,123.6,17.63033438]
[1766017145706,0.7,123.64,123.61,0.68]
[1766017147320,0.7,123.64,123.6,9.54]
[1766017148098,0.7,123.64,123.6,17.63061053]
[1766017148296,0.7,123.64,123.61,0.68]
[1766017152237,0.69,123.66,123.62,2.56519496]
[1766017152414,0.69,123.66,123.63,0.72]
[1766017152796,0.69,123.66,123.61,10.65501899]
[1766017152990,0.69,123.66,123.62,0.72]
[1766017154824,2.56519496,123.66,123.62,0.72]
[1766017154999,0.69,123.65,123.61,0.72]
[1766017160129,0.69,123.65,123.62,0.72]
[1766017163233,0.69,123.65,123.62,8.80928578]
[1766017163667,0.69,123.67,123.64,0.72]
[1766017163803,0.69,123.67,123.65,0.72]
[1766017164004,0.69,123.69,123.66,9.58]
[1766017164637,0.69,123.69,123.66,13.58570445]
[1766017165101,0.69,123.69,123.66,12.86570445]
[1766017166301,0.69,123.69,123.66,8.86]
[1766017166500,0.69,123.69,123.64,21.67347765]
[1766017166932,0.69,123.69,123.64,13.58570445]
[1766017167132,0.69,123.69,123.64,9.58]
[1766017167133,0.69,123.68,123.64,9.58]
[1766017170040,0.69,123.68,123.62,21.67469021]
[1766017170041,0.69,123.67,123.62,21.67469021]
[1766017170536,0.69,123.66,123.62,17.66898576]
[1766017170832,0.69,123.65,123.62,8.86]
[1766017171436,0.69,123.65,123.62,9.58]
[1766017171635,0.69,123.65,123.61,8.80986318]
[1766017171837,0.69,123.63,123.58,12.81728024]
[1766017172012,0.69,123.66,123.58,17.67157579]
[1766017172212,0.69,123.62,123.59,0.72]
[1766017174522,0.69,123.62,123.6,0.72]
[1766017174741,0.69,123.62,123.59,8.09124614]
[1766017174941,0.69,123.62,123.59,8.81124614]
[1766017177183,0.69,123.62,123.6,0.72]
[1766017177345,0.69,123.65,123.61,0.72]
[1766017178838,0.69,123.65,123.61,8.80991449]
[1766017179852,0.69,123.64,123.6,12.81643718]
[1766017180735,0.69,123.64,123.6,8.81053938]
[1766017182553,0.69,123.64,123.6,0.72]
[1766017183441,4.0058978,123.61,123.57,0.2]
[1766017183643,0.7,123.6,123.57,0.2]
[1766017184457,0.7,123.6,123.57,0.88]
[1766017184631,0.7,123.59,123.57,0.2]
[1766017185027,0.7,123.59,123.56,0.2]
[1766017185028,0.7,123.58,123.56,0.2]
[1766017192447,0.7,123.58,123.54,4.0058978]
[1766017193554,0.7,123.58,123.53,17.68994492]
[1766017193555,0.7,123.58,123.53,20.98093366]
[1766017194467,0.7,123.58,123.54,0.34]
[1766017197058,0.7,123.58,123.54,8.43451015]
[1766017197958,0.7,123.54,123.51,0.2]
[1766017198165,0.7,123.53,123.51,0.2]
[1766017202150,10.43767296,123.58,123.51,0.2]
[1766017202344,0.7,123.56,123.53,0.34]
[1766017202544,0.7,123.56,123.53,4.3458978]
[1766017203055,0.7,123.56,123.53,0.34]
[1766017203254,0.7,123.56,123.51,28.53765231]
[1766017203454,0.7,123.56,123.52,4.3458978]
[1766017204251,0.7,123.56,123.52,12.10128701]
[1766017204443,0.7,123.56,123.53,0.34]
[1766017208703,0.7,123.56,123.53,8.43511158]
[1766017209058,0.7,123.56,123.53,0.34]
[1766017210580,0.7,123.56,123.53,8.43506449]
[1766017210957,0.7,123.56,123.52,8.43552368]
[1766017211153,0.68,123.55,123.51,0.54]
[1766017211465,0.68,123.55,123.51,0.2]
[1766017211667,0.68,123.54,123.51,0.2]
[1766017213582,0.68,123.54,123.51,0.54]
[1766017216093,0.68,123.52,123.49,0.2]
[1766017216262,0.68,123.52,123.48,0.2]
[1766017216263,0.68,123.5,123.48,0.2]